No of Transactions,Dept_Family,Entity_Name,Cert Date,Supplier Name,Reference,Gross Amt,Group/Department,Type of Expenditure - Subjective Codes
1,DCMS,Historic England,28/11/2023,AE Facilities Management Limited,0042004488,"16,718.64",Corporate Services-Facilities Management,Maintenance
2,DCMS,Historic England,28/11/2023,AE Facilities Management Limited,0042004488,"18,187.99",Corporate Services-Facilities Management,Maintenance
3,DCMS,Historic England,28/11/2023,AE Facilities Management Limited,0042004488,"1,609.54",Corporate Services-Facilities Management,Maintenance,,,,, 
4,DCMS,Historic England,28/11/2023,AE Facilities Management Limited,0042004488,"10,558.54",Corporate Services-Facilities Management,Office Cleaning
5,DCMS,Historic England,28/11/2023,AE Facilities Management Limited,0042004488,"9,715.15",Corporate Services-Facilities Management,Security
6,DCMS,Historic England,09/11/2023,Barnsley Metropolitan Borough Council,0083002191,"45,120.00",Regions Group-High Str (HAZ) - Regions,Grants Area
7,DCMS,Historic England,15/11/2023,Bath and North East Somerset Council,0083002213,"41,599.00",Regions Group-High Str (HAZ) - Regions,Grants Area
8,DCMS,Historic England,27/11/2023,"BNP Paribas Real Estate, Rent / Services",0042004853,"278,236.75",Governance & Legal-Office Estate,Rent Payable (Building)
9,DCMS,Historic England,28/11/2023,"BNP Paribas Real Estate, Rent / Services",0042004854,"114,453.58",Governance & Legal-Office Estate,Building Service Charges
10,DCMS,Historic England,10/11/2023,Burnley Borough Council,0083002200,"58,552.00",Regions Group-High Str (HAZ) - Regions,Grants Area
11,DCMS,Historic England,15/11/2023,CDW UK,0042004217,"117,480.00",Corporate Services-IMT,Equipment & Furniture <10k
12,DCMS,Historic England,17/11/2023,CDW UK,0042004532,"30,000.00",Corporate Services-IMT,IMT Equipment <10k
13,DCMS,Historic England,07/11/2023,Electron-X Ltd,0038048801,"80,000.00",Policy & Evidence-National Specialist Services,Travel
14,DCMS,Historic England,10/11/2023,Cornwall Council,0083002196,"27,011.00",Regions Group-High Str (HAZ) - Regions,Grants Area
15,DCMS,Historic England,15/11/2023,Council British Arch York,0081006816,"48,017.00",Business Improvement-Grants,Grants Historic Environment
16,DCMS,Historic England,20/11/2023,Dudley Metropolitan Borough Council,0083002222,"45,636.00",Regions Group-High Str (HAZ) - Regions,Grants Area
17,DCMS,Historic England,30/11/2023,EDF  ,0030001497,"42,591.87",Corporate Services-Facilities Management,Electricity
18,DCMS,Historic England,06/11/2023,Electron-X Ltd,0042004508,"23,838.00",Policy & Evidence-National Specialist Services,Plant & Equipment > 10k
19,DCMS,Historic England,06/11/2023,Electron-X Ltd,0042004508,"16,908.00",Policy & Evidence-National Specialist Services,Plant & Equipment > 10k
20,DCMS,Historic England,06/11/2023,Electron-X Ltd,0042004508,"1,200.00",Policy & Evidence-National Specialist Services,Plant & Equipment > 10k
21,DCMS,Historic England,06/11/2023,Electron-X Ltd,0042004508,"6,954.00",Policy & Evidence-National Specialist Services,Plant & Equipment > 10k
22,DCMS,Historic England,06/11/2023,Electron-X Ltd,0042004508,"2,400.00",Policy & Evidence-National Specialist Services,Training (HE Staff)
23,DCMS,Historic England,06/11/2023,Electron-X Ltd,0042004508,"6,000.00",Policy & Evidence-National Specialist Services,Plant & Equipment > 10k
24,DCMS,Historic England,06/11/2023,Electron-X Ltd,0042004508,"9,840.00",Policy & Evidence-National Specialist Services,Plant & Equipment > 10k
25,DCMS,Historic England,06/11/2023,Electron-X Ltd,0042004508,"1,440.00",Policy & Evidence-National Specialist Services,Training (HE Staff)
26,DCMS,Historic England,06/11/2023,Electron-X Ltd,0042004508,"2,400.00",Policy & Evidence-National Specialist Services,Plant & Equipment > 10k
27,DCMS,Historic England,02/11/2023,ESRI (UK) Ltd,0042004543,"57,792.00",Corporate Services-IMT,Software Maintenance
28,DCMS,Historic England,21/11/2023,Fylde Borough Council,0083002227,"98,186.00",Regions Group-High Str (HAZ) - Regions,Grants Area
29,DCMS,Historic England,15/11/2023,Gloucester City Council,0083002217,"109,563.00",Regions Group-High Str (HAZ) - Regions,Grants Area
30,DCMS,Historic England,02/11/2023,Gosport Borough Council,0020075487,"5,654.00",Regions Group-London & South East - RD,Grants Capacity Building Grants
31,DCMS,Historic England,02/11/2023,Gosport Borough Council,0020075487,"20,000.00",Regions Group-London & South East - RD,Grants Capacity Building Grants
32,DCMS,Historic England,02/11/2023,Gosport Borough Council,0020075488,"24,440.00",Regions Group-London & South East - RD,Grants Capacity Building Grants
33,DCMS,Historic England,02/11/2023,Gosport Borough Council,0020075488,"2,170.10",Regions Group-London & South East - RD,Grants Capacity Building Grants
34,DCMS,Historic England,27/11/2023,Government Property Agency-RENT PAYABLE,0042004678,"59,062.50",Governance & Legal-Office Estate,Rent Payable (Building)
35,DCMS,Historic England,27/11/2023,Government Property Agency-RENT PAYABLE,0042004678,"3,772.50",Governance & Legal-Office Estate,Rent Payable (Building)
36,DCMS,Historic England,15/11/2023,GTT-EMEA Ltd,0042004577,"55,407.60",Corporate Services-IMT,Network Contracts
37,DCMS,Historic England,13/11/2023,Hable Education Ltd,0042004640,"78,000.00",Corporate Services-IMT,Training (HE Staff)
38,DCMS,Historic England,28/11/2023,Harlow Property Management Ltd - Rent,0042004809,"70,752.56",Governance & Legal-Office Estate,Rent Payable (Building)
39,DCMS,Historic England,24/11/2023,Herefordshire Council,0083002234,"62,364.00",Regions Group-High Str (HAZ) - Regions,Grants Area
40,DCMS,Historic England,20/11/2023,High Peak Borough Council,0083002219,"225,781.00",Regions Group-High Str (HAZ) - Regions,Grants Area
41,DCMS,Historic England,24/11/2023,Hinckley and Bosworth Borough Council,0083002235,"52,232.00",Regions Group-High Str (HAZ) - Regions,Grants Area
42,DCMS,Historic England,20/11/2023,Kettering Borough Council,0083002225,"37,300.00",Regions Group-High Str (HAZ) - Regions,Grants Area
43,DCMS,Historic England,13/11/2023,Kirklees Council,0083002209,"99,547.00",Regions Group-High Str (HAZ) - Regions,Grants Area
44,DCMS,Historic England,17/11/2023,Lancaster City Council,0083002218,"43,101.00",Regions Group-High Str (HAZ) - Regions,Grants Area
45,DCMS,Historic England,10/11/2023,Mid Devon District Council,0083002198,"172,109.00",Regions Group-High Str (HAZ) - Regions,Grants Area
46,DCMS,Historic England,09/11/2023,Northumberland County Council,0083002192,"28,669.00",Regions Group-High Str (HAZ) - Regions,Grants Area
47,DCMS,Historic England,10/11/2023,Plymouth City Council,0083002203,"84,962.00",Regions Group-High Str (HAZ) - Regions,Grants Area
48,DCMS,Historic England,07/11/2023,Rossendale Borough Council,0083002188,"37,246.00",Regions Group-High Str (HAZ) - Regions,Grants Area
49,DCMS,Historic England,20/11/2023,Sandwell Metropolitan Borough Council,0083002226,"73,018.00",Regions Group-High Str (HAZ) - Regions,Grants Area
50,DCMS,Historic England,08/11/2023,SevernSoft Limited T/A,0042004608,"19,956.00",Business Improvement-Organisational Development,IT Licences <10k
51,DCMS,Historic England,08/11/2023,SevernSoft Limited T/A,0042004608,"7,802.40",Business Improvement-Organisational Development,IT Licences <10k
52,DCMS,Historic England,08/11/2023,SoftwareOne UK Ltd,0042004412,"81,105.29",Corporate Services-IMT,Hosting
53,DCMS,Historic England,09/11/2023,Stoke-on-Trent City Council,0090516654,"55,790.00",Regions Group-Midlands - RD,Grants Capacity Building Grants
54,DCMS,Historic England,10/11/2023,Swindon Borough Council,0082006431,"40,000.00",Regions Group-South West - RD,Grants Historic Buildings
55,DCMS,Historic England,08/11/2023,The Architectural Heritage Fund,0081006807,"83,388.00",Business Improvement-Grants,Grants Capacity Building Grants
56,DCMS,Historic England,20/11/2023,The Arts Council of England,0083002223,"43,078.00",Business Improvement-Programmes,Grants Other Grants
57,DCMS,Historic England,29/11/2023,The Heritage Alliance,0081006837,"34,476.25",Business Improvement-Grants,Grants Capacity Building Grants
58,DCMS,Historic England,02/11/2023,The Historic England Foundation,0020075484,"48,883.39",Shrewsbury Flax Mill Maltings-Shrewsbury Flax Mill Maltings,Fundraising Grants (Revenue)
59,DCMS,Historic England,22/11/2023,The Historical Diving Society,0082006437,"144,066.00",Regions Group-London & South East - RD,Grants Historic Buildings
60,DCMS,Historic England,07/11/2023,Tyldesley CIC,0083002189,"45,957.00",Regions Group-High Str (HAZ) - Regions,Grants Area
61,DCMS,Historic England,13/11/2023,Wakefield Council,0083002207,"122,577.00",Regions Group-High Str (HAZ) - Regions,Grants Area
62,DCMS,Historic England,10/11/2023,Westmorland & Furness Council,0083002201,"81,644.00",Regions Group-High Str (HAZ) - Regions,Grants Area
63,DCMS,Historic England,13/11/2023,Wyre Borough Council,0083002206,"68,535.00",Regions Group-High Str (HAZ) - Regions,Grants Area
